bitfinex/quotes_SOLUSD_20220130
["timestamp","ask_amount","ask_price","bid_price","bid_amount"]
[1643501827583,6.0,95.93,95.859,0.25]
[1643501827783,0.25,95.929,95.859,0.25]
[1643501827982,0.25,95.929,95.86,6.0]
[1643501828482,0.25,95.929,95.858,2.21032163]
[1643501828708,0.25,95.929,95.861,2.21032163]
[1643501829206,0.25,95.929,95.84,6.0]
[1643501829404,39.46269061,95.919,95.84,6.0]
[1643501829804,0.25,95.918,95.841,2.21032163]
[1643501830104,104.85,95.918,95.85,6.0]
[1643501830304,6.0,95.91,95.851,0.25]
[1643501830505,20.99,95.91,95.851,0.25]
[1643501830704,0.25,95.909,95.851,0.25]
[1643501831105,0.25,95.909,95.83,5.75]
[1643501831508,0.25,95.909,95.831,2.21032163]
[1643501833309,0.25,95.909,95.832,0.25]
[1643501833510,0.25,95.909,95.84,6.0]
[1643501833914,0.25,95.909,95.841,0.25]
[1643501835514,104.6,95.898,95.812,0.2]
[1643501835717,104.6,95.898,95.798,0.2]
[1643501835923,6.0,95.89,95.798,0.2]
[1643501836114,14.99,95.88,95.783,2.21032163]
[1643501836316,33.27127913,95.878,95.799,29.06913033]
[1643501836518,33.27127913,95.878,95.8,0.2]
[1643501836916,33.27127913,95.878,95.79,6.0]
[1643501837118,33.27127913,95.878,95.801,29.06913033]
[1643501837317,0.25,95.877,95.802,0.2]
[1643501837717,0.25,95.877,95.8,6.0]
[1643501838121,6.0,95.87,95.8,6.0]
[1643501838319,0.25,95.869,95.8,6.0]
[1643501838819,0.25,95.869,95.801,0.25]
[1643501843320,15.662,95.86,95.801,0.25]
[1643501843521,14.99,95.85,95.801,0.25]
[1643501843721,20.99,95.85,95.78,6.0]
[1643501843920,0.25,95.849,95.782,2.21032163]
[1643501844123,0.25,95.849,95.79,6.0]
[1643501844322,0.25,95.849,95.791,0.25]
[1643501845523,20.99,95.85,95.791,0.25]
[1643501845721,20.99,95.85,95.77,6.0]
[1643501845923,0.25,95.849,95.771,0.25]
[1643501846123,0.25,95.849,95.771,2.46032163]
[1643501846325,0.25,95.849,95.772,2.21032163]
[1643501846526,6.25,95.849,95.782,6.0]
[1643501846829,6.25,95.849,95.783,0.25]
[1643501847025,6.25,95.849,95.783,2.46032163]
[1643501847426,6.25,95.849,95.793,6.0]
[1643501847828,6.25,95.849,95.794,0.25]
[1643501852035,15.665,95.84,95.794,0.25]
[1643501852234,46.53341324,95.839,95.794,0.25]
[1643501855060,0.25,95.838,95.783,2.21032163]
[1643501855263,15.667,95.83,95.744,0.2]
[1643501855461,14.99,95.82,95.745,2.85921296]
[1643501855662,33.54151751,95.819,95.745,2.85921296]
[1643501855860,6.0,95.818,95.745,2.85921296]
[1643501856060,6.0,95.818,95.725,0.5582726]
[1643501856061,6.0,95.809,95.755,1.43031942]
[1643501856266,14.99,95.8,95.755,1.43031942]
[1643501856459,43.20055786,95.799,95.728,2.79087792]
[1643501856660,43.45055786,95.799,95.753,1.43033333]
[1643501856860,43.45055786,95.799,95.742,1.43033333]
[1643501857267,43.45055786,95.799,95.746,1.43033333]
[1643501857462,43.45055786,95.799,95.74,1.43033333]
[1643501857766,6.0,95.789,95.738,1.43033333]
[1643501857962,6.0,95.789,95.741,1.43033333]
[1643501858162,6.0,95.78,95.741,1.43033333]
[1643501858362,45.13171832,95.779,95.742,1.43033333]
[1643501858763,45.13171832,95.779,95.733,1.43033333]
[1643501859163,6.0,95.769,95.733,1.43033333]
[1643501859463,6.0,95.769,95.73,1.43033333]
[1643501859865,6.0,95.768,95.728,1.43033333]
[1643501860064,6.0,95.766,95.725,0.5582726]
[1643501860763,23.5924,95.777,95.725,0.5582726]
[1643501860964,14.99,95.78,95.725,0.5582726]
[1643501861164,23.4277,95.818,95.726,2.20305353]
[1643501861368,14.99,95.83,95.74,1.43033333]
[1643501861564,14.99,95.83,95.75,6.0]
[1643501861763,6.0,95.82,95.751,0.25]
[1643501861964,6.0,95.82,95.753,6.0]
[1643501862167,6.0,95.819,95.751,2.65305353]
[1643501862386,6.0,95.819,95.761,6.0]
[1643501862578,6.0,95.813,95.762,6.0]
[1643501862779,43.0749276,95.812,95.762,8.65305353]
[1643501862983,43.0749276,95.812,95.762,8.45305353]
[1643501863178,43.0749276,95.812,95.763,2.20305353]
[1643501863378,43.0749276,95.812,95.762,6.0]
[1643501863579,14.99,95.81,95.745,1.43033333]
[1643501863778,104.85,95.809,95.736,1.43033333]
[1643501863978,152.8896,95.809,95.738,1.43033333]
[1643501864178,6.0,95.799,95.732,1.43033333]
[1643501864377,14.99,95.79,95.733,1.43033333]
[1643501864578,43.04571515,95.789,95.732,1.43033333]
[1643501864779,43.29571515,95.789,95.733,0.25]
[1643501865478,43.29571515,95.789,95.728,1.43033333]
[1643501865680,6.0,95.779,95.728,1.43033333]
[1643501865879,0.25,95.778,95.721,1.43033333]
[1643501866081,42.38351537,95.769,95.72,1.43033333]
[1643501866281,0.25,95.768,95.72,1.43033333]
[1643501866881,0.25,95.768,95.721,0.25]
[1643501867085,0.25,95.768,95.722,1.43033333]
[1643501867285,0.25,95.768,95.723,0.25]
[1643501867588,0.25,95.769,95.723,1.68033333]
[1643501867783,0.25,95.769,95.723,0.25]
[1643501868183,6.0,95.77,95.723,0.25]
[1643501868683,6.0,95.77,95.732,1.43033333]
[1643501868883,6.0,95.78,95.733,0.25]
[1643501869083,6.0,95.78,95.734,1.43033333]
[1643501869287,6.0,95.78,95.735,0.25]
[1643501869682,6.0,95.783,95.735,0.25]
[1643501869885,6.0,95.78,95.735,1.68033333]
[1643501870086,6.0,95.77,95.736,1.43033333]
[1643501870284,6.0,95.77,95.726,1.43033333]
[1643501870786,15.673,95.79,95.736,6.0]
[1643501870787,6.0,95.78,95.736,6.0]
[1643501870986,15.673,95.79,95.724,1.43033333]
[1643501871187,15.669,95.81,95.734,6.0]
[1643501871388,15.669,95.81,95.735,0.25]
[1643501871587,15.669,95.81,95.735,1.68033333]
[1643501871785,15.669,95.81,95.737,1.43033333]
[1643501871987,15.669,95.81,95.738,1.43033333]
[1643501872186,37.80726118,95.808,95.738,1.43033333]
[1643501872386,37.80726118,95.808,95.739,1.68033333]
[1643501872588,30.661,95.8,95.739,1.68033333]
[1643501872986,30.661,95.8,95.742,1.43033333]
[1643501873187,30.661,95.8,95.743,1.43033333]
[1643501873387,30.661,95.8,95.744,0.25]
[1643501874190,30.661,95.8,95.744,1.68033333]
[1643501874591,30.661,95.8,95.745,1.43033333]
[1643501874790,30.661,95.8,95.746,0.25]
[1643501876095,30.661,95.8,95.744,1.43033333]
[1643501876593,30.661,95.8,95.745,1.43033333]
[1643501876792,38.51903686,95.799,95.744,1.43033333]
[1643501876993,15.673,95.79,95.744,1.43033333]
[1643501877192,15.673,95.79,95.738,1.43033333]
[1643501877396,0.25,95.789,95.739,0.25]
[1643501877593,0.25,95.789,95.737,1.43033333]
[1643501878194,0.25,95.789,95.738,1.43033333]
[1643501878994,0.25,95.789,95.741,1.43033333]
[1643501879196,0.25,95.789,95.742,1.43033333]
[1643501879397,0.25,95.789,95.743,0.25]
[1643501879599,14.99,95.8,95.743,1.68033333]
[1643501880301,14.99,95.8,95.748,1.43033333]
[1643501880698,14.99,95.8,95.749,1.68033333]
[1643501880897,14.99,95.8,95.75,0.25]
[1643501881123,14.99,95.8,95.754,1.43033333]
[1643501881300,14.99,95.8,95.755,0.25]
[1643501881702,24.1857,95.829,95.755,0.25]
[1643501881900,14.99,95.83,95.764,1.43033333]
[1643501882098,14.99,95.83,95.766,1.43033333]
[1643501882299,14.99,95.83,95.771,1.43033333]
[1643501882498,15.663,95.85,95.771,1.43033333]
[1643501882698,30.653,95.85,95.774,1.43033333]
[1643501882903,30.653,95.85,95.775,1.68033333]
[1643501883098,30.653,95.85,95.775,1.43033333]
[1643501883299,30.653,95.85,95.776,0.25]
[1643501883499,30.653,95.85,95.776,1.68033333]
[1643501883705,28.653,95.85,95.776,1.68033333]
[1643501883899,28.653,95.85,95.78,1.43033333]
[1643501884100,28.653,95.85,95.782,1.43033333]
[1643501884299,0.25,95.849,95.783,0.25]
[1643501885399,0.25,95.849,95.784,1.43033333]
[1643501885800,0.25,95.849,95.785,0.25]
[1643501886302,0.25,95.849,95.783,1.43033333]
[1643501886501,0.25,95.849,95.782,1.43033333]
[1643501886703,6.0,95.84,95.773,1.43033333]
[1643501886902,14.99,95.83,95.774,0.25]
[1643501887703,14.99,95.83,95.774,1.68033333]
[1643501887902,14.99,95.83,95.775,1.43033333]
[1643501888302,14.99,95.83,95.776,0.25]
[1643501888503,14.99,95.83,95.774,1.68033333]
[1643501888905,14.99,95.83,95.776,1.43033333]
[1643501889106,14.99,95.83,95.777,1.43033333]
[1643501889305,14.99,95.83,95.774,1.43033333]
[1643501889505,14.99,95.83,95.775,1.43033333]
[1643501889906,14.99,95.83,95.776,1.43033333]
[1643501890109,14.99,95.83,95.774,1.43033333]
[1643501890308,13.99,95.83,95.775,1.68033333]
[1643501890510,22.9774,95.849,95.775,1.68033333]
[1643501890511,22.9774,95.849,95.775,0.25]
[1643501890711,14.99,95.85,95.78,1.43033333]
[1643501890909,0.25,95.848,95.781,0.25]
[1643501891108,0.25,95.848,95.781,1.68033333]
[1643501891314,0.25,95.848,95.782,1.43033333]
[1643501891510,24.2886,95.869,95.792,6.0]
[1643501891910,24.2886,95.869,95.796,1.43033333]
[1643501892110,24.2886,95.869,95.797,1.43033333]
[1643501892310,14.99,95.87,95.798,0.25]
[1643501892508,14.99,95.87,95.798,3.88338686]
[1643501892717,14.99,95.87,95.799,1.43033333]
[1643501892909,14.99,95.87,95.808,6.0]
[1643501893109,14.99,95.87,95.8,2.45305353]
[1643501893313,14.99,95.87,95.8,0.25]
[1643501894112,14.99,95.87,95.786,1.43033333]
[1643501894313,14.99,95.87,95.79,1.43033333]
[1643501894512,14.99,95.87,95.791,1.43033333]
[1643501894914,14.99,95.87,95.792,1.68033333]
[1643501895313,0.25,95.869,95.792,1.68033333]
[1643501895514,14.99,95.87,95.792,1.68033333]
[1643501895714,0.25,95.869,95.792,0.25]
[1643501896131,0.25,95.869,95.786,1.43033333]
[1643501896332,0.25,95.869,95.787,0.25]
[1643501896930,104.85,95.869,95.787,0.25]
[1643501897131,0.25,95.869,95.787,0.25]
[1643501897331,0.25,95.869,95.785,0.25]
[1643501897732,0.25,95.869,95.786,1.43033333]
[1643501897932,15.661,95.86,95.787,1.43033333]
[1643501898133,15.661,95.86,95.765,6.25]
[1643501898134,42.13437733,95.859,95.786,1.43033333]
[1643501898332,42.38437733,95.859,95.787,0.25]
[1643501898535,42.38437733,95.859,95.787,1.68033333]
[1643501898735,42.38437733,95.859,95.787,1.43033333]
[1643501898935,42.38437733,95.859,95.788,0.25]
[1643501899135,66.51247733,95.859,95.788,0.25]
[1643501900138,66.51247733,95.859,95.782,0.25]
[1643501900342,66.51247733,95.859,95.784,1.43033333]
[1643501900539,42.38437733,95.859,95.784,1.43033333]
[1643501900739,42.38437733,95.859,95.794,6.0]
[1643501901143,42.38437733,95.859,95.795,0.25]
[1643501901541,42.38437733,95.859,95.799,6.0]
[1643501901740,42.13437733,95.859,95.799,6.0]
[1643501901940,42.13437733,95.859,95.79,1.43033333]
[1643501902141,66.87077733,95.859,95.751,0.2]
[1643501902340,187.39,95.85,95.748,1.6322868]
[1643501902541,14.99,95.84,95.748,1.4322868]
[1643501902842,91.682392,95.839,95.738,1.4322868]
[1643501903040,104.6,95.819,95.738,1.4322868]
[1643501903240,104.6,95.819,95.725,0.5582726]
[1643501903241,33.82980834,95.808,95.73,1.4322868]
[1643501903443,33.82980834,95.808,95.728,1.4322868]
[1643501903643,6.0,95.798,95.725,0.5582726]
[1643501903842,0.25,95.797,95.725,0.5582726]
[1643501904042,6.25,95.797,95.725,0.5582726]
[1643501904442,6.0,95.79,95.725,0.5582726]
[1643501904643,6.0,95.787,95.725,0.5582726]
[1643501904841,0.25,95.786,95.725,0.5582726]
[1643501905442,6.0,95.79,95.725,0.5582726]
[1643501905643,0.25,95.789,95.725,0.5582726]
[1643501907145,6.25,95.789,95.725,0.5582726]
[1643501909148,6.0,95.789,95.725,0.5582726]
[1643501909347,0.25,95.788,95.725,0.5582726]
[1643501910549,0.25,95.789,95.725,0.5582726]
[1643501910951,6.0,95.79,95.725,0.5582726]
[1643501911453,0.25,95.789,95.725,0.5582726]
[1643501912450,0.25,95.799,95.725,0.5582726]
[1643501912651,0.25,95.799,95.726,29.09917963]
[1643501912849,0.25,95.799,95.727,0.45]
[1643501913449,0.25,95.799,95.728,29.09917963]
[1643501913652,0.25,95.799,95.729,0.2]
[1643501913848,0.25,95.799,95.729,0.45]
[1643501914054,104.6,95.789,95.729,0.45]
[1643501914451,34.56046407,95.778,95.729,0.25]
[1643501914875,34.56046407,95.778,95.725,0.5582726]
[1643501931285,34.56046407,95.778,95.736,1.4322868]
[1643501931487,34.56046407,95.778,95.737,1.4322868]
[1643501931686,14.99,95.78,95.737,1.4322868]
[1643501931886,0.25,95.779,95.737,1.4322868]
[1643501933088,14.99,95.78,95.737,1.4322868]
[1643501933287,14.99,95.78,95.738,0.25]
[1643501933488,14.99,95.78,95.739,1.4322868]
[1643501933890,14.99,95.78,95.74,1.6822868]
[1643501934087,14.99,95.78,95.74,0.25]
[1643501934288,14.99,95.78,95.741,1.4322868]
[1643501934791,14.99,95.78,95.742,0.25]
[1643501934989,14.99,95.78,95.742,0.91059116]
[1643501937893,0.25,95.779,95.742,0.66059116]
[1643501953714,14.99,95.78,95.742,0.66059116]
[1643501954112,1.44478556,95.82,95.742,0.66059116]
[1643501954314,14.99,95.81,95.742,0.66059116]
[1643501954514,14.99,95.83,95.746,1.4322868]
[1643501954713,14.99,95.83,95.742,0.66059116]
[1643501954714,44.47452926,95.829,95.754,1.4322868]
[1643501954914,44.47452926,95.829,95.755,0.25]
[1643501955315,44.47452926,95.829,95.755,2.34287796]
[1643501955714,44.47452926,95.829,95.756,1.4322868]
[1643501955916,44.47452926,95.829,95.757,0.25]
[1643501957116,44.47452926,95.829,95.756,1.6822868]
[1643501957316,44.47452926,95.829,95.756,0.25]
[1643501958117,44.47452926,95.829,95.76,1.4322868]
[1643501958316,44.47452926,95.829,95.761,1.6822868]
[1643501958518,44.47452926,95.829,95.756,0.25]
[1643501959525,14.99,95.83,95.755,2.09287796]
[1643501959822,14.99,95.83,95.756,0.25]
[1643501960425,0.1,96.453,95.756,0.25]
[1643501960426,1.44478556,95.861,95.77,15.659]
[1643501960631,187.39,95.92,95.77,15.659]
[1643501960632,1.44478556,95.876,95.78,6.0]
[1643501960830,1.44478556,95.877,95.782,104.6]
[1643501961026,1.44478556,95.9,95.793,1.4322868]
[1643501961231,1.44478556,95.905,95.803,6.31011453]
[1643501961431,1.44478556,95.906,95.82,15.649]
[1643501961630,43.64101908,95.904,95.83,6.0]
[1643501961827,43.64101908,95.904,95.831,0.25]
[1643501962028,1.44478556,95.905,95.831,6.25]
[1643501962229,1.44478556,95.933,95.831,8.65722495]
[1643501962428,1.44478556,95.933,95.832,2.20722495]
[1643501962628,4.44478556,95.939,95.87,15.643]
[1643501962832,3.0,95.939,95.871,0.25]
[1643501963028,40.3998933,95.938,95.88,6.0]
[1643501963429,3.0,95.939,95.881,6.25]
[1643501963653,1.44478556,95.948,95.881,0.25]
[1643501963858,1.44478556,95.953,95.881,0.25]
[1643501964156,0.25,95.947,95.882,6.0]
[1643501964355,1.44478556,95.954,95.883,0.25]
[1643501964555,1.44478556,95.954,95.883,2.45722495]
[1643501964755,1.44478556,95.961,95.883,2.45722495]
[1643501964957,1.44478556,95.96,95.883,2.45722495]
[1643501965359,37.27358909,95.964,95.883,2.45722495]
[1643501965756,0.25,95.963,95.883,2.45722495]
[1643501965957,37.27358909,95.964,95.883,0.25]
[1643501966157,37.27358909,95.964,95.893,6.0]
[1643501966357,37.27358909,95.964,95.894,0.25]
[1643501966559,37.27358909,95.964,95.894,2.45722495]
[1643501967057,0.25,95.963,95.895,2.20722495]
[1643501967257,0.25,95.963,95.896,0.25]
[1643501967658,0.25,95.963,95.895,2.20722495]
[1643501967857,6.0,95.954,95.883,0.47067088]
[1643501968061,14.99,95.94,95.883,0.47067088]
[1643501968258,0.25,95.939,95.883,0.47067088]
[1643501968460,43.29551401,95.929,95.883,0.47067088]
[1643501968858,6.0,95.919,95.883,0.47067088]
[1643501969958,0.25,95.918,95.883,0.47067088]
[1643501970161,3.20669142,95.918,95.822,0.2]
[1643501970360,3.20669142,95.918,95.781,0.2]
[1643501970562,6.0,95.908,95.781,0.2]
[1643501970858,0.25,95.907,95.781,46.3654]
[1643501971058,41.24051599,95.899,95.782,20.52766725]
[1643501971262,14.99,95.89,95.783,0.2]
[1643501971467,30.7489,95.889,95.783,20.52766725]
[1643501971663,6.0,95.88,95.792,6.0]
[1643501971864,6.25,95.879,95.791,6.2]
[1643501972063,6.0,95.879,95.8,6.0]
[1643501972666,24.7489,95.889,95.8,6.0]
[1643501972869,24.7489,95.889,95.794,6.0]
[1643501973266,24.7489,95.889,95.795,0.25]
[1643501973468,24.7489,95.889,95.8,15.654]
[1643501973667,24.7489,95.889,95.802,6.0]
[1643501973868,0.25,95.888,95.803,0.25]
[1643501974068,6.0,95.879,95.803,0.25]
[1643501974468,0.25,95.878,95.803,0.25]
[1643501974670,24.7489,95.889,95.803,0.25]
[1643501974871,24.7489,95.889,95.801,0.45]
[1643501975271,23.2289,95.889,95.801,0.45]
[1643501975471,23.2289,95.889,95.81,15.653]
[1643501975674,23.2289,95.889,95.811,0.2]
[1643501975871,23.2289,95.889,95.811,0.45]
[1643501976571,14.99,95.89,95.812,2.20722495]
[1643501976773,14.99,95.89,95.813,0.25]
[1643501977171,14.99,95.89,95.814,2.20722495]
[1643501977373,14.99,95.89,95.815,0.25]
[1643501977672,14.99,95.89,95.824,6.0]
[1643501977872,14.99,95.89,95.825,0.25]
[1643501978073,38.6901109,95.909,95.826,6.0]
[1643501978275,38.6901109,95.909,95.827,0.25]
[1643501978672,6.0,95.897,95.827,2.45722495]
[1643501978875,6.0,95.897,95.827,0.25]
[1643501979072,14.99,95.9,95.812,0.2]
[1643501979073,6.0,95.89,95.812,0.2]
[1643501979273,0.25,95.889,95.812,0.2]
[1643501979875,0.25,95.889,95.813,2.20722495]
[1643501980277,0.25,95.889,95.814,0.25]
[1643501980475,0.25,95.899,95.814,0.25]
[1643501980674,14.99,95.9,95.815,2.22669955]
[1643501980876,14.99,95.9,95.821,6.0]
[1643501981075,0.25,95.899,95.821,6.0]
[1643501981276,0.25,95.899,95.78,68.1497]
[1643501981277,0.25,95.899,95.822,0.25]
[1643501982277,0.25,95.899,95.811,0.45]
[1643501982477,14.99,95.9,95.811,0.25]
[1643501982677,14.99,95.9,95.811,2.22669955]
[1643501982882,14.99,95.9,95.812,2.47669955]
[1643501983078,14.99,95.9,95.817,6.0]
[1643501983277,14.99,95.9,95.818,0.25]
[1643501983580,6.0,95.89,95.818,2.47146724]
[1643501983776,6.0,95.89,95.819,2.22146724]
[1643501983978,6.0,95.89,95.82,15.651]
[1643501984176,14.99,95.91,95.821,0.2]
[1643501984177,6.0,95.896,95.821,0.2]
[1643501984378,6.0,95.896,95.821,2.42146724]
[1643501984577,6.0,95.896,95.822,2.22146724]
[1643501984990,6.0,95.896,95.823,0.25]
[1643501985583,6.0,95.896,95.824,2.22146724]
[1643501985883,6.0,95.896,95.825,0.25]
[1643501986285,6.0,95.896,95.826,2.22146724]
[1643501986888,6.0,95.896,95.827,0.25]
[1643501987288,6.0,95.896,95.828,2.22146724]
[1643501987687,6.0,95.896,95.829,0.25]
[1643501988188,6.0,95.896,95.83,2.22146724]
[1643501988387,6.0,95.896,95.831,0.25]
[1643501988788,6.0,95.896,95.831,2.47146724]
[1643501990409,6.0,95.896,95.831,0.25]
[1643501990808,6.0,95.896,95.819,0.25]
[1643501991008,6.0,95.896,95.82,15.651]
[1643501991215,6.0,95.896,95.821,0.2]
[1643501991410,6.0,95.896,95.821,0.45]
[1643501991609,6.0,95.896,95.822,2.22146724]
[1643501991809,6.0,95.896,95.823,0.25]
[1643501992210,6.0,95.896,95.824,2.22146724]
[1643501992408,6.0,95.896,95.825,0.25]
[1643501992812,6.0,95.896,95.826,2.22146724]
[1643501993209,6.0,95.896,95.827,0.25]
[1643501993409,5.0,95.896,95.827,0.25]
[1643501993609,5.0,95.896,95.828,2.22146724]
[1643501993813,5.0,95.896,95.829,0.25]
[1643501994209,5.0,95.896,95.83,2.22146724]
[1643501994410,5.0,95.896,95.831,0.25]
[1643501994810,5.0,95.896,95.832,2.22146724]
[1643501995511,5.0,95.896,95.833,0.25]
[1643501995811,5.0,95.896,95.834,2.22146724]
[1643501996213,5.0,95.896,95.835,0.25]
[1643501996613,1.44478556,95.912,95.835,0.25]
[1643501996614,6.0,95.902,95.836,2.22146724]
[1643501996812,6.0,95.886,95.837,0.25]
[1643501997013,6.0,95.902,95.837,0.25]
[1643501997410,6.0,95.905,95.837,0.25]
[1643501997612,6.0,95.901,95.837,0.25]
[1643501998013,6.0,95.901,95.846,6.0]
[1643501998416,6.0,95.901,95.847,2.47146724]
[1643501998613,6.0,95.905,95.847,2.47146724]
[1643501998814,6.0,95.905,95.848,2.22146724]
[1643501999016,6.0,95.904,95.848,2.22146724]
[1643501999214,6.0,95.904,95.849,0.25]
[1643501999614,6.0,95.905,95.849,2.47146724]
[1643502000014,6.0,95.904,95.849,2.47146724]
[1643502000617,1.44478556,95.914,95.85,15.646]
[1643502000816,23.1699,95.926,95.851,0.45]
[1643502001015,23.1699,95.926,95.851,2.67146724]
[1643502001215,23.1699,95.926,95.851,0.45]
[1643502001415,23.1699,95.926,95.852,2.22146724]
[1643502001619,24.61468556,95.926,95.852,2.22146724]
[1643502001819,23.1699,95.926,95.853,0.25]
[1643502002215,23.1699,95.926,95.854,2.22146724]
[1643502002417,1.69478556,95.925,95.854,2.22146724]
[1643502002619,1.69478556,95.925,95.846,6.0]
[1643502002816,1.44478556,95.916,95.846,6.0]
[1643502003016,6.0,95.915,95.846,6.0]
[1643502003215,1.44478556,95.911,95.846,6.0]
[1643502003416,1.44478556,95.909,95.847,0.25]
[1643502003615,36.91285438,95.908,95.847,0.25]
[1643502003824,0.25,95.907,95.842,6.0]
[1643502004120,1.44478556,95.906,95.842,6.0]
[1643502004317,38.35763994,95.908,95.842,6.0]
[1643502004716,1.44478556,95.907,95.842,6.0]
[1643502004919,1.69478556,95.907,95.842,6.0]
[1643502005117,1.44478556,95.907,95.842,6.0]
[1643502005318,36.91285438,95.908,95.842,6.0]
[1643502005717,36.91285438,95.908,95.843,2.47136441]
[1643502006117,36.91285438,95.908,95.844,2.22136441]
[1643502006318,36.91285438,95.908,95.845,0.25]
[1643502006919,36.91285438,95.908,95.846,2.22136441]
[1643502007320,0.25,95.907,95.847,0.25]
[1643502008321,0.25,95.907,95.843,0.25]
[1643502009122,0.25,95.907,95.833,0.2]
[1643502009327,7.44478556,95.898,95.832,0.18992028]
[1643502009524,1.44478556,95.891,95.832,0.18992028]
[1643502009924,1.69478556,95.89,95.832,0.18992028]
[1643502010126,44.12070853,95.879,95.832,0.18992028]
[1643502012127,0.25,95.878,95.832,0.18992028]
[1643502014830,44.12070853,95.879,95.832,0.18992028]
[1643502015433,0.25,95.878,95.832,0.18992028]
[1643502015833,6.0,95.869,95.832,0.18992028]
[1643502016257,0.25,95.868,95.832,0.18992028]
[1643502016459,6.25,95.868,95.832,0.18992028]
[1643502016758,6.0,95.86,95.832,0.18992028]
[1643502016962,6.0,95.858,95.832,0.18992028]
[1643502017159,44.77648357,95.848,95.832,0.18992028]
[1643502017362,0.25,95.847,95.832,0.18992028]
[1643502017559,104.6,95.837,95.832,0.18992028]
[1643502017959,0.25,95.836,95.832,0.18992028]
[1643502018158,127.4831,95.836,95.832,0.18992028]
[1643502018758,24.1527,95.835,95.832,0.18992028]
[1643502019162,3.20669142,95.834,95.832,0.00992028]
[1643502019860,0.25,95.834,95.832,0.00992028]
[1643502020261,104.85,95.834,95.832,0.00992028]
[1643502023163,2.95669142,95.833,95.832,0.00992028]
[1643502023363,35.35221742,95.833,95.832,0.00992028]
[1643502023764,10.034567,95.833,95.832,0.37984056]
[1643502024064,104.6,95.832,95.717,1.4322868]
[1643502024264,39.79844865,95.818,95.722,6.0]
[1643502024464,104.6,95.817,95.727,6.0]
[1643502024667,6.0,95.808,95.727,5.7836671]
[1643502024865,6.25,95.807,95.728,0.25]
[1643502025065,104.6,95.806,95.728,0.25]
[1643502025366,14.99,95.8,95.728,0.25]
[1643502025668,15.673,95.79,95.716,0.2]
[1643502025866,0.25,95.789,95.705,0.2]
[1643502026272,0.25,95.789,95.712,6.0]
[1643502026467,0.25,95.789,95.712,5.78418695]
[1643502026667,0.25,95.789,95.712,5.28418695]
[1643502026869,15.673,95.79,95.713,2.47136441]
[1643502027271,15.673,95.79,95.714,2.22136441]
[1643502027668,15.673,95.79,95.715,0.25]
[1643502028269,0.25,95.789,95.724,6.0]
[1643502028668,0.25,95.794,95.725,0.25]
[1643502031069,6.0,95.785,95.725,0.25]
[1643502031269,0.25,95.784,95.725,0.25]
[1643502031472,22.8721,95.784,95.711,0.20377382]
[1643502031770,22.6221,95.784,95.711,0.45377382]
[1643502031970,22.6221,95.784,95.712,2.22136441]
[1643502032371,22.6221,95.784,95.722,6.0]
[1643502032769,0.25,95.783,95.723,0.25]
[1643502032969,22.6221,95.784,95.723,0.25]
[1643502033871,0.25,95.783,95.723,0.25]